lending/lending_fUSD_20250425
["ID","MTS","AMOUNT","RATE_DAILY","PERIOD"]
[358914699,1745545026774,-2205.24,0.00049589,30]
[358914700,1745545026800,-802.61,0.00049589,30]
[358914701,1745545026829,-781.78,0.00049589,30]
[358914702,1745545026856,-500.0,0.00049589,30]
[358914703,1745545026884,-3457.54,0.00049589,30]
[358914704,1745545026909,-500.0,0.00049589,30]
[358914705,1745545026934,-515.47,0.00049589,30]
[358914706,1745545026960,-553.68,0.00049589,30]
[358914707,1745545026987,-943.43,0.00049589,30]
[358914708,1745545027013,-500.0,0.00049589,30]
[358914709,1745545027039,-990.31,0.00049589,30]
[358914710,1745545027064,-610.47,0.00049589,30]
[358914711,1745545027089,-412.79570467,0.00049589,30]
[358914712,1745545027115,-2070.09,0.00049589,30]
[358914713,1745545027139,-500.0,0.00049589,30]
[358914714,1745545027168,-500.0,0.00049589,30]
[358914715,1745545027196,-1324.47,0.00049589,30]
[358914716,1745545027221,-500.0,0.00049589,30]
[358914717,1745545027246,-500.0,0.00049589,30]
[358914718,1745545027272,-500.0,0.00049589,30]
[358914719,1745545027299,-3419.03,0.00049589,30]
[358914720,1745545027326,-3680.59,0.00049589,30]
[358914721,1745545027354,-500.0,0.00049589,30]
[358914722,1745545027381,-500.0,0.00049589,30]
[358914723,1745545027414,-982.56,0.00049589,30]
[358914724,1745545027441,-350.0,0.00049589,30]
[358914725,1745545027467,-6091.61,0.00049589,30]
[358914726,1745545027494,-500.0,0.00049589,30]
[358914727,1745545027522,-500.0,0.00049589,30]
[358914728,1745545027548,-500.0,0.00049589,30]
[358914729,1745545027575,-500.0,0.00049589,30]
[358914730,1745545027603,-1042.75,0.00049589,30]
[358914731,1745545027631,-755.73,0.00049589,30]
[358914732,1745545027658,-2124.75,0.00049589,30]
[358914733,1745545027686,-1207.25,0.00049589,30]
[358914734,1745545027713,-1232.59,0.00049589,30]
[358914735,1745545027739,-500.0,0.00049589,30]
[358914736,1745545027765,-282.3874892,0.00049589,30]
[358914737,1745545027791,-500.0,0.00049589,30]
[358914738,1745545027818,-500.0,0.00049589,30]
[358914739,1745545027844,-767.48,0.00049589,30]
[358914740,1745545027870,-500.0,0.00049589,30]
[358914741,1745545027899,-787.17,0.00049589,30]
[358914742,1745545027928,-500.0,0.00049589,30]
[358914743,1745545027961,-1581.75,0.00049589,30]
[358914744,1745545027988,-500.0,0.00049589,30]
[358914745,1745545028015,-500.0,0.00049589,30]
[358914746,1745545028041,-1343.63,0.00049589,30]
[358914747,1745545028067,-2907.59,0.00049589,30]
[358914748,1745545028094,-895.82,0.00049589,30]
[358914749,1745545028120,-537.86789296,0.00049589,30]
[358914750,1745545028147,-2590.97,0.00049589,30]
[358914751,1745545028174,-500.0,0.00049589,30]
[358914752,1745545028201,-500.0,0.00049589,30]
[358914753,1745545028227,-256.64858657,0.00049589,30]
[358914754,1745545028255,-1122.52,0.00049589,30]
[358914755,1745545028280,-512.09471981,0.00049589,30]
[358914756,1745545028308,-500.0,0.00049589,30]
[358914757,1745545028336,-543.24,0.00049589,30]
[358914758,1745545028671,-4014.71,0.00049589,30]
[358914759,1745545028700,-500.0,0.00049589,30]
[358914760,1745545028728,-500.0,0.00049589,30]
[358914761,1745545028755,-500.0,0.00049589,30]
[358914762,1745545028783,-500.0,0.00049589,30]
[358914763,1745545028814,-500.84,0.00049589,30]
[358914764,1745545028840,-239.42700533,0.00049589,30]
[358914765,1745545028886,-925.93,0.00049589,30]
[358914766,1745545028914,-500.0,0.00049589,30]
[358914767,1745545028942,-500.0,0.00049589,30]
[358914768,1745545028971,-500.0,0.00049589,30]
[358914769,1745545029000,-500.0,0.00049589,30]
[358914770,1745545029028,-500.0,0.00049589,30]
[358914771,1745545029056,-901.52,0.00049589,30]
[358914772,1745545029083,-513.39571395,0.00049589,30]
[358914773,1745545029110,-644.62,0.00049589,30]
[358914774,1745545029140,-1008.41,0.00049589,30]
[358914775,1745545029168,-2619.2,0.00049589,30]
[358914776,1745545029197,-1102.75,0.00049589,30]
[358914777,1745545029226,-500.0,0.00049589,30]
[358914778,1745545029253,-1503.08,0.00049589,30]
[358914779,1745545029280,-500.0,0.00049589,30]
[358914780,1745545029307,-817.1,0.00049589,30]
[358914781,1745545029336,-1147.58,0.00049589,30]
[358914782,1745545029364,-1000.0,0.00049589,120]
[358914783,1745545029401,-512.28683793,0.00049589,30]
[358914784,1745545029430,-500.0,0.00049589,30]
[358914785,1745545029459,-4526.86,0.00049589,30]
[358914786,1745545029488,-1065.37,0.00049589,30]
[358914787,1745545029519,-542.03821448,0.00049589,30]
[358914788,1745545029549,-508.6,0.00049589,30]
[358914789,1745545029579,-740.34,0.00049589,30]
[358914790,1745545029608,-1291.23,0.00049589,30]
[358914791,1745545029637,-500.0,0.00049589,30]
[358914792,1745545029665,-500.0,0.00049589,30]
[358914793,1745545029695,-500.0,0.00049589,30]
[358914794,1745545029723,-500.0,0.00049589,30]
[358914795,1745545029752,-593.9,0.00049589,30]
[358914796,1745545029781,-500.0,0.00049589,30]
[358914797,1745545029813,-3944.13,0.00049589,30]
[358914798,1745545029841,-500.0,0.00049589,30]
[358914799,1745545029870,-500.0,0.00049589,30]
[358914800,1745545029904,-3738.13,0.00049589,30]
[358914801,1745545029937,-814.96,0.00049589,30]
[358914802,1745545029966,-500.0,0.00049589,30]
[358914803,1745545029995,-578.78133075,0.00049589,30]
[358914804,1745545030025,-500.0,0.00049589,30]
[358914805,1745545030055,-3013.74,0.00049589,30]
[358914806,1745545030083,-500.0,0.00049589,30]
[358914807,1745545030111,-500.0,0.00049589,30]
[358914808,1745545030141,-1940.43,0.00049589,30]
[358914809,1745545030169,-505.96,0.00049589,30]
[358914810,1745545030199,-802.86,0.00049589,30]
[358914811,1745545030228,-500.0,0.00049589,30]
[358914812,1745545030256,-831.63,0.00049589,30]
[358914813,1745545030284,-3690.41,0.00049589,30]
[358914814,1745545030313,-2007.82,0.00049589,30]
[358914815,1745545030340,-500.0,0.00049589,30]
[358914816,1745545030368,-500.0,0.00049589,30]
[358914817,1745545030395,-2561.77,0.00049589,30]
[358914818,1745545030423,-500.0,0.00049589,30]
[358914819,1745545030450,-500.0,0.00049589,30]
[358914820,1745545030483,-500.0,0.00049589,30]
[358914821,1745545030511,-500.0,0.00049589,30]
[358914822,1745545030538,-500.0,0.00049589,30]
[358914823,1745545030566,-500.0,0.00049589,30]
[358914824,1745545030595,-1709.19,0.00049589,30]
[358914825,1745545030623,-625.02,0.00049589,30]
[358914826,1745545030649,-500.0,0.00049589,30]
[358914827,1745545030676,-641.42,0.00049589,30]
[358914828,1745545030705,-625.36,0.00049589,30]
[358914829,1745545030732,-500.0,0.00049589,30]
[358914830,1745545030759,-500.0,0.00049589,30]
[358914831,1745545030788,-661.96,0.00049589,30]
[358914832,1745545030816,-500.0,0.00049589,30]
[358914833,1745545030842,-500.0,0.00049589,30]
[358914834,1745545030871,-2106.95,0.00049589,30]
[358914835,1745545030899,-891.31,0.00049589,30]
[358914836,1745545030926,-534.45303959,0.00049589,30]
[358914837,1745545030952,-500.0,0.00049589,30]
[358914838,1745545030980,-500.0,0.00049589,30]
[358914839,1745545031008,-500.0,0.00049589,30]
[358914840,1745545031048,-500.0,0.00049589,30]
[358914841,1745545031076,-500.0,0.00049589,30]
[358914842,1745545031104,-603.98678079,0.00049589,30]
[358914843,1745545031131,-500.0,0.00049589,30]
[358914844,1745545031160,-2215.55,0.00049589,30]
[358914845,1745545031188,-500.0,0.00049589,30]
[358914846,1745545031216,-612.26,0.00049589,30]
[358914847,1745545031247,-588.82986667,0.00049589,30]
[358914848,1745545031279,-1337.84,0.00049589,30]
[358914849,1745545031310,-10709.64,0.00049589,30]
[358914850,1745545031338,-500.0,0.00049589,30]
[358914851,1745545031365,-500.0,0.00049589,30]
[358914852,1745545031394,-500.0,0.00049589,30]
[358914853,1745545031423,-500.0,0.00049589,30]
[358914854,1745545031452,-500.0,0.00049589,30]
[358914855,1745545031481,-1976.56,0.00049589,30]
[358914856,1745545031509,-653.33,0.00049589,30]
[358914857,1745545031537,-596.77,0.00049589,30]
[358914858,1745545031573,-500.0,0.00049589,30]
[358914859,1745545031603,-500.0,0.00049589,30]
[358914860,1745545031633,-1134.2,0.00049589,30]
[358914861,1745545031661,-500.0,0.00049589,30]
[358914862,1745545032032,-500.0,0.00049589,30]
[358914863,1745545032061,-430.35072616,0.00049589,30]
[358914864,1745545032090,-329.91538876,0.00049589,30]
[358914865,1745545032117,-500.0,0.00049589,30]
[358914866,1745545032145,-1112.33,0.00049589,30]
[358914867,1745545032173,-1448.03,0.00049589,30]
[358914868,1745545032200,-500.0,0.00049589,30]
[358914869,1745545032228,-841.68,0.00049589,30]
[358914870,1745545032260,-823.66,0.00049589,30]
[358914871,1745545032289,-500.0,0.00049589,30]
[358914872,1745545032318,-1808.75,0.00049589,30]
[358914873,1745545032348,-500.0,0.00049589,30]
[358914874,1745545032375,-300.0,0.00049589,30]
[358914875,1745545032402,-971.58,0.00049589,30]
[358914876,1745545032429,-500.0,0.00049589,30]
[358914877,1745545032456,-500.0,0.00049589,30]
[358914878,1745545032482,-626.08831798,0.00049589,30]
[358914879,1745545032508,-500.0,0.00049589,30]
[358914880,1745545032534,-990.82,0.00049589,30]
[358914881,1745545032562,-520.07210001,0.00049589,30]
[358914882,1745545032590,-500.0,0.00049589,30]
[358914883,1745545032617,-1821.84,0.00049589,30]
[358914884,1745545032644,-1960.52,0.00049589,30]
[358914885,1745545032671,-500.0,0.00049589,30]
[358914886,1745545032696,-167.57309999,0.00049589,30]
[358914887,1745545032722,-1313.12,0.00049589,30]
[358914888,1745545032749,-500.0,0.00049589,30]
[358914889,1745545032776,-500.0,0.00049589,30]
[358914890,1745545032805,-500.0,0.00049589,30]
[358914891,1745545032839,-500.0,0.00049589,30]
[358914892,1745545032868,-553.12,0.00049589,30]
[358914893,1745545032897,-3715.78,0.00049589,30]
[358914894,1745545032925,-500.0,0.00049589,30]
[358914895,1745545032951,-672.15,0.00049589,30]
[358914896,1745545032979,-3817.81,0.00049589,30]
[358914897,1745545033006,-500.0,0.00049589,30]
[358914898,1745545033034,-1880.56,0.00049589,30]
[358914899,1745545033060,-500.0,0.00049589,30]
[358914900,1745545033089,-500.0,0.00049589,30]
[358914901,1745545033116,-500.0,0.00049589,30]
[358914902,1745545033144,-893.18,0.00049589,30]
[358914903,1745545033172,-500.0,0.00049589,30]
[358914904,1745545033202,-1498.23,0.00049589,30]
[358914905,1745545033230,-500.0,0.00049589,30]
[358914906,1745545033257,-500.0,0.00049589,30]
[358914907,1745545033283,-507.34240861,0.00049589,30]
[358914908,1745545033311,-500.0,0.00049589,30]
[358914909,1745545033340,-500.0,0.00049589,30]
[358914910,1745545033367,-500.0,0.00049589,30]
[358914911,1745545033394,-500.0,0.00049589,30]
[358914912,1745545033422,-500.0,0.00049589,30]
[358914913,1745545033450,-620.16,0.00049589,30]
[358914914,1745545033479,-500.0,0.00049589,30]
[358914915,1745545033507,-500.0,0.00049589,30]
[358914916,1745545033535,-500.0,0.00049589,30]
[358914917,1745545033564,-500.0,0.00049589,30]
[358914918,1745545033592,-500.0,0.00049589,30]
[358914919,1745545033621,-608.18,0.00049589,30]
[358914920,1745545033649,-1073.32,0.00049589,30]
[358914921,1745545033677,-527.14986875,0.00049589,30]
[358914922,1745545033704,-1008.53,0.00049589,30]
[358914923,1745545033731,-1524.36,0.00049589,30]
[358914924,1745545033758,-500.0,0.00049589,30]
[358914925,1745545033785,-1015.49,0.00049589,30]
[358914926,1745545033816,-413.35843204,0.00049589,30]
[358914927,1745545033843,-544.35980817,0.00049589,30]
[358914928,1745545033871,-557.66,0.00049589,30]
[358914929,1745545033900,-558.64,0.00049589,30]
[358914930,1745545033927,-966.47,0.00049589,30]
[358914931,1745545033953,-331.26563819,0.00049589,30]
[358914932,1745545033981,-500.0,0.00049589,30]
[358914933,1745545034009,-500.0,0.00049589,30]
[358914934,1745545034036,-692.33,0.00049589,30]
[358914935,1745545034062,-500.0,0.00049589,30]
[358914936,1745545034088,-1717.47,0.00049589,30]
[358914937,1745545034114,-2016.33,0.00049589,30]
[358914938,1745545034141,-500.0,0.00049589,30]
[358914939,1745545034168,-3170.03,0.00049589,30]
[358914940,1745545034195,-2357.56,0.00049589,30]
[358914941,1745545034223,-500.0,0.00049589,30]
[358914942,1745545034249,-1600.56,0.00049589,30]
[358914943,1745545034275,-500.0,0.00049589,30]
[358914944,1745545034302,-936.5,0.00049589,30]
[358914945,1745545034328,-2103.74,0.00049589,30]
[358914946,1745545034354,-500.0,0.00049589,30]
[358914947,1745545034382,-500.0,0.00049589,30]
[358914948,1745545034411,-524.07732595,0.00049589,30]
[358914949,1745545034437,-1286.01,0.00049589,30]
[358914950,1745545034466,-988.18,0.00049589,30]
[358914951,1745545034492,-504.93390751,0.00049589,30]
[358914952,1745545034517,-500.0,0.00049589,30]
[358914953,1745545034543,-500.0,0.00049589,30]
[358914954,1745545034569,-500.0,0.00049589,30]
[358914955,1745545034594,-500.0,0.00049589,30]
[358914956,1745545034621,-1226.29,0.00049589,30]
[358914957,1745545034648,-500.0,0.00049589,30]
[358914958,1745545034675,-500.0,0.00049589,30]
[358914959,1745545034702,-500.0,0.00049589,30]
[358914960,1745545034729,-664.11,0.00049589,30]
[358914961,1745545034755,-290.85297444,0.00049589,30]
[358914962,1745545034783,-500.0,0.00049589,30]
[358914963,1745545034813,-1286.96,0.00049589,30]
[358914964,1745545034842,-722.24,0.00049589,30]
[358914965,1745545034871,-500.0,0.00049589,30]
[358914966,1745545034901,-500.0,0.00049589,30]
[358914967,1745545035162,-971.1,0.00049589,30]
[358914968,1745545035189,-500.0,0.00049589,30]
[358914969,1745545035216,-500.0,0.00049589,30]
[358914970,1745545035245,-796.66,0.00049589,30]
[358914971,1745545035273,-529.83180292,0.00049589,30]
[358914972,1745545035300,-517.30669021,0.00049589,30]
[358914973,1745545035327,-500.0,0.00049589,30]
[358914974,1745545035354,-500.0,0.00049589,30]
[358914975,1745545035381,-528.52887777,0.00049589,30]
[358914976,1745545035408,-1402.77,0.00049589,30]
[358914977,1745545035435,-500.0,0.00049589,30]
[358914978,1745545035461,-500.0,0.00049589,30]
[358914979,1745545035488,-500.0,0.00049589,30]
[358914980,1745545035515,-438.34089442,0.00049589,30]
[358914981,1745545035541,-500.0,0.00049589,30]
[358914982,1745545035568,-500.0,0.00049589,30]
[358914983,1745545035595,-41511.09,0.00049589,30]
[358914984,1745545035621,-2669.76,0.00049589,30]
[358914985,1745545035648,-408.69085565,0.00049589,30]
[358914986,1745545035675,-1999.03,0.00049589,30]
[358914987,1745545035702,-500.0,0.00049589,30]
[358914988,1745545035729,-533.3,0.00049589,30]
[358914989,1745545035755,-311.01182144,0.00049589,30]
[358914990,1745545035782,-500.0,0.00049589,30]
[358914991,1745545035811,-500.0,0.00049589,30]
[358914992,1745545035837,-500.0,0.00049589,30]
[358914993,1745545035864,-1636.56,0.00049589,30]
[358914994,1745545035892,-500.0,0.00049589,30]
[358914995,1745545035920,-500.0,0.00049589,30]
[358914996,1745545035947,-684.27,0.00049589,30]
[358914997,1745545035973,-500.0,0.00049589,30]
[358914998,1745545036000,-500.0,0.00049589,30]
[358914999,1745545036026,-500.0,0.00049589,30]
[358915000,1745545036052,-20814.49,0.00049589,30]
[358915001,1745545036078,-500.0,0.00049589,30]
[358915002,1745545036106,-686.42,0.00049589,30]
[358915003,1745545036133,-500.0,0.00049589,30]
[358915004,1745545036161,-500.0,0.00049589,30]
[358915005,1745545036188,-268.0,0.00049589,60]
[358915006,1745545036215,-268.0,0.00049589,60]
[358915007,1745545036240,-268.0,0.00049589,60]
[358915008,1745545036266,-268.0,0.00049589,60]
[358915009,1745545036291,-268.0,0.00049589,60]
[358915010,1745545036318,-268.0,0.00049589,60]
[358915011,1745545036344,-268.0,0.00049589,60]
[358915012,1745545036371,-268.0,0.00049589,60]
[358915013,1745545036396,-268.0,0.00049589,60]
[358915014,1745545036423,-268.0,0.00049589,60]
[358915015,1745545036452,-498.0,0.00049589,60]
[358915016,1745545036482,-498.0,0.00049589,60]
[358915017,1745545036510,-498.0,0.00049589,60]
[358915018,1745545036537,-498.0,0.00049589,60]
[358915019,1745545036566,-498.0,0.00049589,60]
[358915020,1745545036594,-498.0,0.00049589,60]
[358915021,1745545036622,-498.0,0.00049589,60]
[358915022,1745545036649,-498.0,0.00049589,60]
[358915023,1745545036676,-498.0,0.00049589,60]
[358915024,1745545036702,-498.0,0.00049589,60]
[358915025,1745545036729,-498.0,0.00049589,60]
[358915026,1745545036755,-498.0,0.00049589,60]
[358915027,1745545036781,-268.0,0.00049589,60]
[358915028,1745545036812,-268.0,0.00049589,60]
[358915029,1745545036854,-268.0,0.00049589,60]
[358915030,1745545036907,-268.0,0.00049589,60]
[358915031,1745545036956,-268.0,0.00049589,60]
[358915032,1745545037012,-268.0,0.00049589,60]
[358915033,1745545037062,-268.0,0.00049589,60]
[358915034,1745545037114,-268.0,0.00049589,60]
[358915035,1745545037158,-268.0,0.00049589,60]
[358915036,1745545037203,-268.0,0.00049589,60]
[358915037,1745545037246,-268.0,0.00049589,60]
[358915038,1745545037290,-268.0,0.00049589,60]
[358915039,1745545037334,-268.0,0.00049589,60]
[358915040,1745545037379,-268.0,0.00049589,60]
[358915041,1745545037424,-498.0,0.00049589,60]
[358915042,1745545037479,-498.0,0.00049589,60]
[358915043,1745545037533,-498.0,0.00049589,60]
[358915044,1745545037577,-498.0,0.00049589,60]
[358915045,1745545037621,-498.0,0.00049589,60]
[358915046,1745545037666,-498.0,0.00049589,60]
[358915047,1745545037712,-498.0,0.00049589,60]
[358915048,1745545037758,-498.0,0.00049589,60]
[358915049,1745545037802,-498.0,0.00049589,60]
[358915050,1745545037852,-498.0,0.00049589,60]
[358915051,1745545037899,-498.0,0.00049589,60]
[358915052,1745545037945,-498.0,0.00049589,60]
[358915053,1745545037991,-498.0,0.00049589,60]
[358915054,1745545038045,-498.0,0.00049589,60]
[358915055,1745545038089,-268.0,0.00049589,60]
[358915056,1745545038133,-268.0,0.00049589,60]
[358915057,1745545038176,-268.0,0.00049589,60]
[358915058,1745545038220,-268.0,0.00049589,60]
[358915059,1745545038266,-268.0,0.00049589,60]
[358915060,1745545038310,-268.0,0.00049589,60]
[358915061,1745545038357,-268.0,0.00049589,60]
[358915062,1745545038401,-268.0,0.00049589,60]
[358915063,1745545038446,-268.0,0.00049589,60]
[358915064,1745545038489,-268.0,0.00049589,60]
[358915065,1745545038539,-268.0,0.00049589,60]
[358915066,1745545038604,-268.0,0.00049589,60]
[358915067,1745545038651,-268.0,0.00049589,60]
[358915068,1745545038694,-268.0,0.00049589,60]
[358915069,1745545038738,-499.0,0.00049589,60]
[358915070,1745545038781,-499.0,0.00049589,60]
[358915071,1745545038827,-499.0,0.00049589,60]
[358915072,1745545038875,-499.0,0.00049589,60]
[358915073,1745545038919,-499.0,0.00049589,60]
[358915074,1745545038961,-499.0,0.00049589,60]
[358915075,1745545039004,-499.0,0.00049589,60]
[358915076,1745545039046,-499.0,0.00049589,60]
[358915077,1745545039088,-499.0,0.00049589,60]
[358915078,1745545039129,-499.0,0.00049589,60]
[358915079,1745545039171,-499.0,0.00049589,60]
[358915080,1745545039211,-499.0,0.00049589,60]
[358915081,1745545039251,-499.0,0.00049589,60]
[358915082,1745545039293,-499.0,0.00049589,60]
[358915083,1745545039333,-499.0,0.00049589,60]
[358915084,1745545039374,-499.0,0.00049589,60]
[358915085,1745545039414,-499.0,0.00049589,60]
[358915086,1745545039455,-268.0,0.00049589,60]
[358915087,1745545039496,-268.0,0.00049589,60]
[358915088,1745545039536,-268.0,0.00049589,60]
[358915089,1745545039576,-268.0,0.00049589,60]
[358915090,1745545040039,-268.0,0.00049589,60]
[358915091,1745545040112,-268.0,0.00049589,60]
[358915092,1745545040140,-268.0,0.00049589,60]
[358915093,1745545040168,-268.0,0.00049589,60]
[358915094,1745545040195,-268.0,0.00049589,60]
[358915095,1745545040223,-268.0,0.00049589,60]
[358915096,1745545040251,-268.0,0.00049589,60]
[358915097,1745545040277,-268.0,0.00049589,60]
[358915098,1745545040304,-268.0,0.00049589,60]
[358915099,1745545040330,-268.0,0.00049589,60]
[358915100,1745545040356,-268.0,0.00049589,60]
[358915101,1745545040384,-268.0,0.00049589,60]
[358915102,1745545040412,-268.0,0.00049589,60]
[358915103,1745545040439,-499.0,0.00049589,60]
[358915104,1745545040466,-499.0,0.00049589,60]
[358915105,1745545040493,-499.0,0.00049589,60]
[358915106,1745545040520,-499.0,0.00049589,60]
[358915107,1745545040547,-499.0,0.00049589,60]
[358915108,1745545040573,-499.0,0.00049589,60]
[358915109,1745545040600,-499.0,0.00049589,60]
[358915110,1745545040626,-499.0,0.00049589,60]
[358915111,1745545040654,-499.0,0.00049589,60]
[358915112,1745545040681,-499.0,0.00049589,60]
[358915113,1745545040707,-499.0,0.00049589,60]
[358915114,1745545040734,-499.0,0.00049589,60]
[358915115,1745545040760,-499.0,0.00049589,60]
[358915116,1745545040787,-499.0,0.00049589,60]
[358915117,1745545040816,-268.0,0.00049589,60]
[358915118,1745545040842,-268.0,0.00049589,60]
[358915119,1745545040869,-268.0,0.00049589,60]
[358915120,1745545040895,-268.0,0.00049589,60]
[358915121,1745545040922,-268.0,0.00049589,60]
[358915122,1745545040949,-268.0,0.00049589,60]
[358915123,1745545040976,-268.0,0.00049589,60]
[358915124,1745545041002,-268.0,0.00049589,60]
[358915125,1745545041028,-268.0,0.00049589,60]
[358915126,1745545041054,-268.0,0.00049589,60]
[358915127,1745545041080,-268.0,0.00049589,60]
[358915128,1745545041107,-268.0,0.00049589,60]
[358915129,1745545041133,-268.0,0.00049589,60]
[358915130,1745545041160,-268.0,0.00049589,60]
[358915131,1745545041188,-499.0,0.00049589,60]
[358915132,1745545041218,-499.0,0.00049589,60]
[358915133,1745545041246,-499.0,0.00049589,60]
[358915134,1745545041274,-499.0,0.00049589,60]
[358915135,1745545041301,-499.0,0.00049589,60]
[358915136,1745545041328,-499.0,0.00049589,60]
[358915137,1745545041356,-499.0,0.00049589,60]
[358915138,1745545041384,-499.0,0.00049589,60]
[358915139,1745545041411,-499.0,0.00049589,60]
[358915140,1745545041440,-499.0,0.00049589,60]
[358915141,1745545041467,-499.0,0.00049589,60]
[358915142,1745545041497,-499.0,0.00049589,60]
[358915143,1745545041525,-499.0,0.00049589,60]
[358915144,1745545041554,-499.0,0.00049589,60]
[358915145,1745545041581,-268.0,0.00049589,60]
[358915146,1745545041612,-268.0,0.00049589,60]
[358915147,1745545041640,-268.0,0.00049589,60]
[358915148,1745545041668,-268.0,0.00049589,60]
[358915149,1745545041695,-268.0,0.00049589,60]
[358915150,1745545041722,-268.0,0.00049589,60]
[358915151,1745545041749,-268.0,0.00049589,60]
[358915152,1745545041775,-268.0,0.00049589,60]
[358915153,1745545041802,-268.0,0.00049589,60]
[358915154,1745545041834,-268.0,0.00049589,60]
[358915155,1745545041861,-268.0,0.00049589,60]
[358915156,1745545041889,-268.0,0.00049589,60]
[358915157,1745545041916,-268.0,0.00049589,60]
[358915158,1745545041943,-268.0,0.00049589,60]
[358915159,1745545041969,-500.0,0.00049644,60]
[358915160,1745545041997,-1365.13308862,0.0004968,120]
[358915161,1745545042024,-523.05541005,0.0004977,120]
[358915162,1745545042053,-150.0,0.00049788,120]
[358915163,1745545042083,-1000.0,0.00049788,120]
[358915164,1745545042109,-1757.77756609,0.000498,120]
[358915165,1745545042137,-572.51150696,0.000498,120]
[358915166,1745545042166,-152.0,0.0004981,33]
[358915167,1745545042194,-2110.0,0.00049815,30]
[358915168,1745545042220,-1210.43867637,0.00049863,120]
[358915169,1745545042246,-232.80351939,0.00049863,30]
[358915170,1745545042273,-1152.0,0.00049863,30]
[358915171,1745545042300,-1132.194193,0.00049863,30]
[358915172,1745545042329,-9063.631094,0.00049863,30]
[358915173,1745545042357,-500.0,0.00049863,30]
[358915174,1745545042386,-380.15779749,0.00049863,30]
[358915175,1745545042412,-500.0,0.00049863,30]
[358915176,1745545042440,-1167.008109,0.00049863,30]
[358915177,1745545042470,-500.0,0.00049863,30]
[358915178,1745545042497,-500.0,0.00049863,30]
[358915179,1745545042524,-500.0,0.00049863,30]
[358915180,1745545042551,-500.0,0.00049863,30]
[358915181,1745545042578,-442.49138193,0.00049863,30]
[358915182,1745545042606,-500.0,0.00049863,30]
[358915183,1745545042632,-500.0,0.00049863,30]
[358915184,1745545042659,-190.08318096,0.00049863,30]
[358915185,1745545042684,-500.0,0.00049863,30]
[358915186,1745545042711,-500.0,0.00049863,30]
[358915187,1745545042737,-500.0,0.00049863,30]
[358915188,1745545042762,-500.0,0.00049863,30]
[358915189,1745545042788,-500.0,0.00049863,30]
[358915190,1745545042817,-500.0,0.00049863,30]
[358915191,1745545043043,-901.79,0.00049863,30]
[358915192,1745545043071,-2000.0,0.00049863,30]
[358915193,1745545043100,-636.08,0.00049863,30]
[358915194,1745545043127,-1583.15,0.00049863,30]
[358915195,1745545043155,-500.0,0.00049863,30]
[358915196,1745545043180,-500.0,0.00049863,30]
[358915197,1745545043208,-862.05,0.00049863,30]
[358915198,1745545043236,-187.2482539,0.00049863,30]